Period,Quarter,"Recipient Name",City,Province,Country,Title,Language,Genre,Date,"Final Value","Original Value",Type,Purpose,Comments
2019-2020,P4,"Fire Song Films Inc.",Toronto,Ontario,Canada,"Fire Song",English,Drama,2020-03-24,15292.00,29906.00,Advance,"Marketing Program","Amended Contract Signed 21-Jul-2016"
2019-2020,P4,"Mongrel Media Inc.",Toronto,Ontario,Canada,Unless,English,Drama,2020-01-29,47588.00,76725.00,Advance,"Marketing Program","Amended Contract Signed 14-Mar-2017"
2019-2020,P4,"Foundry Films Inc.",Toronto,Ontario,Canada,"Far To Go",English,"Historical Drama",2020-03-25,18188.00,21571.00,Advance,"Development Program","Amended Contract Signed 22-Dec-2016"
2019-2020,P4,"Plausible Communications Corporation",Toronto,Ontario,Canada,Dragon,English,Drama,2020-03-11,40162.00,44292.00,Advance,"Development Program","Amended Contract Signed 29-Mar-2017"
2019-2020,P4,"Jobro Productions Inc.",Toronto,Ontario,Canada,"Red River Woman",English,Mystery/Crime/Police,2020-03-25,11135.00,15000.00,Advance,"Development Program","Amended Contract Signed 13-Mar-2017"
2019-2020,P4,"Screen Siren Pictures Inc.",Vancouver,"British Columbia",Canada,"The Widows' Club",English,Comedy,2020-03-27,13180.00,15000.00,Advance,"Development Program","Amended Contract Signed 07-Feb-2017"
2019-2020,P4,"Rhombus Media Inc.",Toronto,Ontario,Canada,"The Furies",English,Thriller,2020-03-26,2144262.00,2144262.00,Investment,"Production Program",
2019-2020,P4,"Productions Couzin Inc",Montreal,Quebec,Canada,"R�pertoire des villes disparues",French,"Science fiction/Fantasy/Tale",2020-02-20,778182.00,850000.00,Investment,"Production Program","Amended Contract Signed 09-Mar-2018"
2019-2020,P4,"Les Films 1976 Inc.",Montreal,Quebec,Canada,Saint-Narcisse,English,"Romantic Comedy",2020-03-19,360000.00,300000.00,Contribution,"Production Program","Amended Contract Signed 08-Mar-2019"
2019-2020,P4,"10619248 Canada Inc.",Montreal,Quebec,Canada,SLAXX,English,Horror,2020-03-19,425000.00,400000.00,Contribution,"Production Program","Amended Contract Signed 13-Feb-2019"
2019-2020,P4,"9393-9866 Qu�bec inc.",Montreal,Quebec,Canada,"Montreal Girls",English,Drama,2020-03-23,400000.00,300000.00,Investment,"Production Program","Amended Contract Signed 25-Mar-2019"
2019-2020,P4,"Midnight Blue Pictures Inc",Halifax,"Nova Scotia",Canada,"Night Blooms",English,Drama,2020-03-30,299500.00,262000.00,Contribution,"Production Program","Amended Contract Signed 12-Mar-2019"
2019-2020,P4,"Funfilm Distribution Inc.",Montreal,Quebec,Canada,Gen�se,French,Drama,2020-01-28,27196.00,30000.00,Advance,"Marketing Program","Amended Contract Signed 06-Feb-2019"
2019-2020,P4,"11652605 Canada Inc",Montreal,Quebec,Canada,"� Travers Tes Yeux",French,Documentary,2020-01-20,100000.00,100000.00,Contribution,"Theatrical Documentary Program",
2019-2020,P4,"90th Parallel Productions Ltd.",Toronto,Ontario,Canada,"Inconvenient Indian",English,Documentary,2020-01-21,75000.00,75000.00,Contribution,"Theatrical Documentary Program",
2019-2020,P4,"9388-0201 Qu�bec Inc",Maliotenam,Quebec,Canada,Nitassinan,French,Documentary,2020-03-05,100000.00,100000.00,Contribution,"Theatrical Documentary Program",
2019-2020,P4,"Mongrel Media Inc.",Toronto,Ontario,Canada,"Anthropocene: The Human Epoch",English,Documentary,2020-01-08,148413.00,185178.00,Advance,"Marketing Program","Amended Contract Signed 11-Jan-2019"
2019-2020,P4,"S.T. Culture China & M�bius Entertainment Group",Beijing,,China,Innocent,English,,2020-03-06,45000.00,45000.00,Contribution,"Export Assistance Program",
2019-2020,P4,"Level Film Inc.",Toronto,Ontario,Canada,"Angelique's Isle",English,"Historical Drama",2020-01-08,20405.00,26853.00,Advance,"Marketing Program","Amended Contract Signed 20-Feb-2019"
2019-2020,P4,"Level Film Inc.",Toronto,Ontario,Canada,"Riot Girls",English,"Science fiction/Fantasy/Tale",2020-02-17,19421.00,24750.00,Advance,"Marketing Program","Amended Contract Signed 26-Mar-2019"
2019-2020,P4,"Level Film Inc.",Toronto,Ontario,Canada,Firecrackers,English,,2020-01-10,108767.00,123750.00,Advance,"Marketing Program","Amended Contract Signed 26-Mar-2019"
2019-2020,P4,"Profane Ape Productions Inc.",Toronto,Ontario,Canada,"The Swearing Jar",English,Musical,2020-03-27,1000000.00,1000000.00,Investment,"Production Program",
2019-2020,P4,"VHS Forever Inc.",Toronto,Ontario,Canada,"I Like Movies (formerly Rejects Night)",English,Comedy,2020-03-25,125000.00,125000.00,Contribution,"Talent To Watch Program",
2019-2020,P4,"10614726 Canada Inc.",Gatineau,Quebec,Canada,L'inhumain,French,"Science fiction/Fantasy/Tale",2020-01-27,594000.00,594000.00,Contribution,"Production Program",
2019-2020,P4,"AMPS Productions Inc.",Mulmur,Ontario,Canada,"All My Puny Sorrows",English,Drama,2020-03-17,1500000.00,1500000.00,Investment,"Production Program",
2019-2020,P4,"11455176 Canada Inc.",Montreal,Quebec,Canada,BEANS,English,"Historical Drama",2020-03-30,1290000.00,1240000.00,Advance,"Production Program","Amended Contract Signed 27-Sep-2019"
2019-2020,P4,"Rosie Films Inc.",Toronto,Ontario,Canada,Rosie,English,Drama,2020-03-17,490000.00,490000.00,Investment,"Production Program",
2019-2020,P4,"Runaway Films Inc.","Antigonish County","Nova Scotia",Canada,Wildhood,English,Drama,2020-02-24,450000.00,450000.00,Contribution,"Production Program",
2019-2020,P4,"Lightning Mill Inc",Edmonton,Alberta,Canada,"Hey Viktor!",English,Comedy,2020-03-18,313300.00,313300.00,Contribution,"Production Program",
2019-2020,P4,"SSMT Productions Inc.",Vancouver,"British Columbia",Canada,Invasions,English,Drama,2020-03-06,400000.00,400000.00,Investment,"Production Program",
2019-2020,P4,"Mongrel Media Inc.",Toronto,Ontario,Canada,"GIANT LITTLE ONES",English,,2020-03-05,160546.00,160546.00,Advance,"Marketing Program",
2019-2020,P4,"Wire Walker Studios Canada",Lachine,Quebec,Canada,"Peace by Chocolate",English,Drama,2020-03-13,435000.00,400000.00,Contribution,"Production Program","Amended Contract Signed 20-Dec-2019"
2019-2020,P4,"Mongrel Media Inc.",Toronto,Ontario,Canada,"The Grizzlies",English,,2020-03-02,542016.00,542016.00,Advance,"Marketing Program",
2019-2020,P4,"9222-1712 Qu�bec Inc.",Outremont,Quebec,Canada,"Woman in Car",English,Drama,2020-02-17,80000.00,80000.00,Contribution,"Production Program",
2019-2020,P4,"Little Dipper Films Inc.",Whitehorse,Yukon,Canada,POLARIS,English,Drama,2020-03-17,500000.00,400000.00,Contribution,"Production Program","Amended Contract Signed 28-Oct-2019"
2019-2020,P4,"Lucky Lab Pictures Inc.",Vancouver,"British Columbia",Canada,"When Time Got Louder",English,Drama,2020-01-23,325000.00,325000.00,Investment,"Production Program",
2019-2020,P4,"9337-3447 Qu�bec Inc.",Montreal,Quebec,Canada,"�cho � Delta",French,Drama,2020-02-04,500000.00,500000.00,Contribution,"Production Program",
2019-2020,P4,"2187063 Alberta Ltd.",Edmonton,Alberta,Canada,"Before I Change My Mind",English,Drama,2020-02-18,350000.00,350000.00,Investment,"Production Program",
2019-2020,P4,"KRH film Inc.",Montreal,Quebec,Canada,"The G",English,Thriller,2020-03-05,500000.00,500000.00,Contribution,"Production Program",
2019-2020,P4,"FILM ALBANY INC.",Montreal,Quebec,Canada,"Au Nord d'Albany",French,Drama,2020-03-04,425000.00,425000.00,Contribution,"Production Program",
2019-2020,P4,"9409-0479 Qu�bec inc.","Ste-Famille I.O.",Quebec,Canada,"La Bataille de Farador",French,Comedy,2020-02-24,300000.00,300000.00,Investment,"Production Program",
2019-2020,P4,"See For Me Film Inc.",Toronto,Ontario,Canada,"See For Me",English,Thriller,2020-01-28,350000.00,350000.00,Investment,"Production Program",
2019-2020,P4,"11657445 Canada Inc.",Ottawa,Ontario,Canada,"La Switch",French,Drama,2020-03-05,450000.00,450000.00,Investment,"Production Program",
2019-2020,P4,"Virtual Insurance Films Inc.",Vancouver,"British Columbia",Canada,"With Love and a Major Organ",English,Comedy,2020-02-27,340000.00,340000.00,Investment,"Production Program",
2019-2020,P4,"The Boathouse Productions 2020 Inc.",Mississauga,Ontario,Canada,"THE BOATHOUSE",English,Thriller,2020-02-14,380000.00,380000.00,Investment,"Production Program",
2019-2020,P4,"New Dawn Films Ltd.",Kingsburg,"Nova Scotia",Canada,"Dawn, Her Dad & The Tractor",English,Drama,2020-01-16,350000.00,350000.00,Contribution,"Production Program",
2019-2020,P4,"Barn 12 (Brooke & Sam) Inc.",Toronto,Ontario,Canada,"Brooke and Sam",English,Drama,2020-01-22,325870.00,325870.00,Investment,"Production Program",
2019-2020,P4,"Brother Movie Inc.",Toronto,Ontario,Canada,Brother,English,Drama,2020-03-24,2800000.00,2800000.00,Investment,"Production Program",
2019-2020,P4,"AW Canada Films Inc.",Toronto,Ontario,Canada,"American Woman",,,2020-01-16,5000.00,5000.00,Contribution,"International Marketing Program",
2019-2020,P4,"6909060 Canada Inc.",Montreal,Quebec,Canada,"Blood Quantum",,,2020-02-17,1500.00,1500.00,Contribution,"International Marketing Program",
2019-2020,P4,"Sony Pictures Classics Inc.","New York","New York","United States","The Fall of The American Empire",English,,2020-03-20,12000.00,12000.00,Contribution,"Export Assistance Program",
2019-2020,P4,"PCF Cordonni�re Le Film Inc.",Montreal,Quebec,Canada,"La Cordonni�re",French,Drama,2020-03-20,1740000.00,1740000.00,Investment,"Production Program",
2019-2020,P4,"Pionniers Productions Inc.",St-Anicet,Quebec,Canada,"Maria Chapdelaine",French,"Historical Drama",2020-01-29,2050000.00,2050000.00,Advance,"Production Program",
2019-2020,P4,"Northwood Productions Inc.",Toronto,Ontario,Canada,"The Grizzlies",,,2020-02-11,3000.00,3000.00,Contribution,"International Marketing Program",
2019-2020,P4,"Film Forge Productions Inc.",Toronto,Ontario,Canada,Mizeria,,,2020-03-24,1500.00,1500.00,Contribution,"International Marketing Program",
2019-2020,P4,"Cin�fest: The Sudbury Film Festival Inc.",Sudbury,Ontario,Canada,"Cinefest Sudbury International Film Festival",,,2020-01-06,59483.00,59483.00,Contribution,"Promotion Program",
2019-2020,P4,"Sinking Ship Entertainment Inc.",Toronto,Ontario,Canada,"Dino Dana: The Movie",English,,2020-02-24,150000.00,150000.00,Advance,"Marketing Program",
2019-2020,P4,"Women In Film and Television - Atlantic",Halifax,"Nova Scotia",Canada,"Women Making Waves Conference 2020",,,2020-01-06,5000.00,5000.00,Contribution,"Promotion Program",
2019-2020,P4,"Interactive Ontario Industry Association",Toronto,Ontario,Canada,"Interactive Digital Media Distribution Forum",,,2020-01-15,20000.00,20000.00,Contribution,"Promotion Program",
2019-2020,P4,"Curiosity Pictures Inc.",Burnaby,"British Columbia",Canada,"Middle 8",,,2020-03-03,1500.00,1500.00,Contribution,"International Marketing Program",
2019-2020,P4,"Ins�parables films inc.",Montreal,Quebec,Canada,Nichole,French,Drama,2020-02-24,90000.00,90000.00,Contribution,"Talent To Watch Program",
2019-2020,P4,"2703715 ONTARIO INC.",Toronto,Ontario,Canada,"The Maiden",English,Drama,2020-01-02,125000.00,125000.00,Contribution,"Talent To Watch Program",
2019-2020,P4,"Jewelwing Pictures Ltd.",Fredericton,"New Brunswick",Canada,"Further Than The Eye Can See",English,"Science fiction/Fantasy/Tale",2020-03-12,125000.00,125000.00,Contribution,"Talent To Watch Program",
2019-2020,P4,"10028866 Manitoba Ltd.",Peguis,Manitoba,Canada,iNdigiThreads,English,Documentary,2020-01-07,125000.00,125000.00,Contribution,"Talent To Watch Program",
2019-2020,P4,"Film Forge Productions Inc.",Toronto,Ontario,Canada,Mizeria,,,2020-03-11,1500.00,1500.00,Contribution,"International Marketing Program",
2019-2020,P4,"A71 Entertainment Inc.",Toronto,Ontario,Canada,Rabid,English,Horror,2020-02-06,156300.00,156300.00,Advance,"Marketing Program",
2019-2020,P4,"Isuma Distribution International Ltd.",Montreal,Quebec,Canada,"One Day in the Life of  Noah Piugattuk",Aboriginal,"Historical Drama",2020-03-27,150000.00,150000.00,Advance,"Marketing Program",
2019-2020,P4,"Screen Nova Scotia Industry Association",Halifax,"Nova Scotia",Canada,"Nova Scotia Content Market",,,2020-03-06,3000.00,3000.00,Contribution,"Promotion Program",
2019-2020,P4,"Baldy Film  Inc.",Toronto,Ontario,Canada,"White Lie",,,2020-03-12,3500.00,3500.00,Contribution,"International Marketing Program",
2019-2020,P4,"Level Film Inc.",Toronto,Ontario,Canada,"The Rest Of Us",English,Drama,2020-01-29,49500.00,49500.00,Advance,"Marketing Program",
2019-2020,P4,"FE (Canada) Films Inc.",Toronto,Ontario,Canada,"French Exit",English,Comedy,2020-02-20,2750000.00,2750000.00,Investment,"Production Program",
2019-2020,P4,"ATOMIC AUTUMN PRODUCTIONS INC.",Montreal,Quebec,Canada,"Best Sellers",English,Comedy,2020-01-15,2280364.00,2280364.00,Advance,"Production Program",
2019-2020,P4,"Coop Spira",Quebec,Quebec,Canada,"Mad Dog & The Butcher - Les derniers vilains",French,,2020-03-17,14500.00,14500.00,Advance,"Marketing Program",
2019-2020,P4,"Coop Spira",Quebec,Quebec,Canada,"Prisons sans barreaux",French,,2020-03-17,12550.00,12550.00,Advance,"Marketing Program",
2019-2020,P4,"Festival international du film pour enfants de Montr�al",Montreal,Quebec,Canada,"Festival International du Film pour Enfants de Montr�al",,,2020-01-15,16223.00,16223.00,Contribution,"Promotion Program",
2019-2020,P4,"Serendipity Point Films Inc.",Toronto,Ontario,Canada,"The Song of Names",,,2020-02-10,7000.00,7000.00,Contribution,"International Marketing Program",
2019-2020,P4,"Voyelles Films Productions inc.",Montreal,Quebec,Canada,"Sin La Habana",,,2020-01-02,1500.00,1500.00,Contribution,"International Marketing Program",
2019-2020,P4,"Canadian Filmmakers Festival",Toronto,Ontario,Canada,"Canadian Filmmakers Festival",,,2020-03-23,5000.00,5000.00,Contribution,"Promotion Program",
2019-2020,P4,"9286-4883 Qu�bec Inc. (faisant affaire sous le nom de L'embuscade Films)",Montreal,Quebec,Canada,"La mort n'existe pas",,,2020-03-02,1500.00,1500.00,Contribution,"International Marketing Program",
2019-2020,P4,"Banker Box Films Limited","King City",Ontario,Canada,"Mother's Day",English,Documentary,2020-03-08,125000.00,125000.00,Contribution,"Talent To Watch Program",
2019-2020,P4,"Festival du film de l'Outaouais",Montreal,Quebec,Canada,"Festival du film de l'Outaouais",,,2020-02-19,21069.00,21069.00,Contribution,"Promotion Program",
2019-2020,P4,"Wide Open Exposure Productions Limited",Montreal,Quebec,Canada,"Producing The Threat",English,Documentary,2020-03-17,15000.00,15000.00,Advance,"Development Program",
2019-2020,P4,"Serendipity Point Films Inc.",Toronto,Ontario,Canada,"Crimes of the Future",English,Drama,2020-01-09,200000.00,200000.00,Advance,"Development Program",
2019-2020,P4,"La Bo�te � Fanny inc.",Montreal,Quebec,Canada,Zipper,French,Musical,2020-03-12,15000.00,15000.00,Advance,"Development Program",
2019-2020,P4,"Julijette Inc.",Winnipeg,Manitoba,Canada,Lemniscate,English,"Science fiction/Fantasy/Tale",2020-02-06,15000.00,15000.00,Advance,"Development Program",
2019-2020,P4,"Carousel Pictures Inc.",Toronto,Ontario,Canada,"Boom Boom",English,Drama,2020-03-12,15000.00,15000.00,Advance,"Development Program",
2019-2020,P4,"Amalga Cr�ations M�dias Inc.",Montreal,Quebec,Canada,"Autour d'elle",French,Drama,2020-02-26,15000.00,15000.00,Advance,"Development Program",
2019-2020,P4,"Perfect Pictures Inc.",Calgary,Alberta,Canada,"Penny Whistle",English,Horror,2020-02-13,15000.00,15000.00,Advance,"Development Program",
2019-2020,P4,"Resonance Films Inc.",Vancouver,"British Columbia",Canada,"THE MILK CARTON KID",English,Comedy,2020-02-11,15000.00,15000.00,Advance,"Development Program",
2019-2020,P4,"Rink Rat Productions Inc.","St. John's",Newfoundland/Labrador,Canada,"Bark Avenue",English,Drama,2020-03-20,15000.00,15000.00,Advance,"Development Program",
2019-2020,P4,"Rink Rat Productions Inc.","St. John's",Newfoundland/Labrador,Canada,"Brotherly Love",English,Drama,2020-03-20,15000.00,15000.00,Advance,"Development Program",
2019-2020,P4,"Rink Rat Productions Inc.","St. John's",Newfoundland/Labrador,Canada,Game,English,Drama,2020-03-20,30000.00,30000.00,Advance,"Development Program",
2019-2020,P4,"Rink Rat Productions Inc.","St. John's",Newfoundland/Labrador,Canada,Shimmer,English,Drama,2020-03-20,15000.00,15000.00,Advance,"Development Program",
2019-2020,P4,"Rink Rat Productions Inc.","St. John's",Newfoundland/Labrador,Canada,"Dear Everybody",English,"Historical Drama",2020-03-20,15000.00,15000.00,Advance,"Development Program",
2019-2020,P4,"A71 Entertainment Inc.",Toronto,Ontario,Canada,"Honey Bee formerly Natalie",English,Drama,2020-02-14,25000.00,25000.00,Advance,"Marketing Program",
2019-2020,P4,"Six Island Productions Inc.",Toronto,Ontario,Canada,"The Hag",English,Horror,2020-03-16,15000.00,15000.00,Advance,"Development Program",
2019-2020,P4,"New Real Films Inc.",Toronto,Ontario,Canada,"The Story of Polly Childs As Told By Her Enemies",English,Drama,2020-02-13,15000.00,15000.00,Advance,"Development Program",
2019-2020,P4,"New Real Films Inc.",Toronto,Ontario,Canada,"Unidentified Donald",English,Drama,2020-02-13,20000.00,20000.00,Advance,"Development Program",
2019-2020,P4,"New Real Films Inc.",Toronto,Ontario,Canada,Seeds,English,Thriller,2020-02-13,15000.00,15000.00,Advance,"Development Program",
2019-2020,P4,"Interstate 80 Entertainment Inc.",Calgary,Alberta,Canada,"Marooned on Planet Earth",English,Thriller,2020-02-10,15000.00,15000.00,Advance,"Development Program",
2019-2020,P4,"Orange M�dias Inc.",Rosemere,Quebec,Canada,St�r�o-Parental,French,Comedy,2020-02-27,15000.00,15000.00,Advance,"Development Program",
2019-2020,P4,"Orange M�dias Inc.",Rosemere,Quebec,Canada,"Une Maille � l'endroit, une maille � l'envers",French,Comedy,2020-02-27,15000.00,15000.00,Advance,"Development Program",
2019-2020,P4,"Banner House Productions Inc.",Montreal,Quebec,Canada,"The Love Experiment",English,"Romantic Comedy",2020-02-12,15000.00,15000.00,Advance,"Development Program",
2019-2020,P4,"Les films de Gary Inc.","Havre-aux-Maisons, Iles-de-la-Madeleine",Quebec,Canada,"CE QUI TOURNE AU CAUCHEMAR",French,Documentary,2020-02-24,15000.00,15000.00,Advance,"Development Program",
2019-2020,P4,"Motion 58 Entertainment Inc.",Vancouver,"British Columbia",Canada,"Anything Co.",English,Comedy,2020-03-02,35000.00,35000.00,Advance,"Development Program",
2019-2020,P4,"Motion 58 Entertainment Inc.",Vancouver,"British Columbia",Canada,"Charlie and the Misfits of 3B",English,Comedy,2020-03-02,15000.00,15000.00,Advance,"Development Program",
2019-2020,P4,"Motion 58 Entertainment Inc.",Vancouver,"British Columbia",Canada,"NYE Y2K",English,Horror,2020-03-02,15000.00,15000.00,Advance,"Development Program",
2019-2020,P4,"9360-1953 Qu�bec inc.",Montreal,Quebec,Canada,"The Hole in the Sky",English,"Science fiction/Fantasy/Tale",2020-02-18,15000.00,15000.00,Advance,"Development Program",
2019-2020,P4,"Amerique Film Inc.",Montreal,Quebec,Canada,"J'ai perdu mon mari",,,2020-02-11,1500.00,1500.00,Contribution,"International Marketing Program",
2019-2020,P4,"MCP Productions Inc.",Montreal,Quebec,Canada,"Ethel's Orchestra",English,"Historical Drama",2020-02-12,15000.00,15000.00,Advance,"Development Program",
2019-2020,P4,"6710875 Canada inc.",Gatineau,Quebec,Canada,Mokatek,French,"Science fiction/Fantasy/Tale",2020-02-26,15000.00,15000.00,Advance,"Development Program",
2019-2020,P4,"FESTIVAL DU FILM INTERNATIONAL DE BAIE-COMEAU (CINOCHE) INC",Baie-Comeau,Quebec,Canada,"Festival du film international de Baie-Comeau-Cinoche",,,2020-03-16,6000.00,6000.00,Contribution,"Promotion Program",
2019-2020,P4,"Chaos A Film Company Inc.",Calgary,Alberta,Canada,"Trickle Creek",English,"Romantic Comedy",2020-02-27,15000.00,15000.00,Advance,"Development Program",
2019-2020,P4,"Cineast Screen Development Limited",Halifax,"Nova Scotia",Canada,"THE CAIRN",English,Thriller,2020-02-12,15000.00,15000.00,Advance,"Development Program",
2019-2020,P4,"Marie Clements Media Inc.","Galiano Island","British Columbia",Canada,"SPARROW/Nel Dzay Ya",English,Thriller,2020-03-17,18000.00,18000.00,Advance,"Development Program",
2019-2020,P4,"White Pine Pictures Inc.",Toronto,Ontario,Canada,"Margaret Atwood: A Word After a Word After a Word Is Power",English,Documentary,2020-01-06,25000.00,25000.00,Advance,"Marketing Program",
2019-2020,P4,"Hope of Glory Pictures Ltd.",Burnaby,"British Columbia",Canada,"Past Present",English,Comedy,2020-03-11,20000.00,20000.00,Advance,"Development Program",
2019-2020,P4,"Hope of Glory Pictures Ltd.",Burnaby,"British Columbia",Canada,"APEIRON FALLS",English,"Science fiction/Fantasy/Tale",2020-03-11,15000.00,15000.00,Advance,"Development Program",
2019-2020,P4,"Amazing Factory Productions Inc.",Vancouver,"British Columbia",Canada,Mustard,English,Drama,2020-02-10,15000.00,15000.00,Advance,"Development Program",
2019-2020,P4,"Amazing Factory Productions Inc.",Vancouver,"British Columbia",Canada,"Black Sand",English,Western,2020-02-10,15000.00,15000.00,Advance,"Development Program",
2019-2020,P4,"�a Tourne Productions Ltee.",Caraquet,"New Brunswick",Canada,"LES VOIX - Une ode lyrique � la r�sistance",French,Documentary,2020-03-06,15000.00,15000.00,Advance,"Development Program",
2019-2020,P4,"Wreckhouse Productions Inc.","St. John's",Newfoundland/Labrador,Canada,Limelight,English,Drama,2020-02-24,15000.00,15000.00,Advance,"Development Program",
2019-2020,P4,"Mazewalker Films","Bear River","Nova Scotia",Canada,Skite'kmujua'kik,English,"Science fiction/Fantasy/Tale",2020-03-17,18000.00,18000.00,Advance,"Development Program",
2019-2020,P4,"Devonshire Productions Inc.",Toronto,Ontario,Canada,Warg,English,Horror,2020-02-12,15000.00,15000.00,Advance,"Development Program",
2019-2020,P4,"1371097 Ontario Ltd. O/A CaribbeanTales",Toronto,Ontario,Canada,"In The Black",English,Drama,2020-02-19,15000.00,15000.00,Advance,"Development Program",
2019-2020,P4,"1371097 Ontario Ltd. O/A CaribbeanTales",Toronto,Ontario,Canada,"Left of Marx",English,Drama,2020-02-19,15000.00,15000.00,Advance,"Development Program",
2019-2020,P4,"Urbansoul Inc.",Toronto,Ontario,Canada,"BROWN GIRL",English,"Science fiction/Fantasy/Tale",2020-03-10,15000.00,15000.00,Advance,"Development Program",
2019-2020,P4,"Clique Pictures Inc.",Toronto,Ontario,Canada,"Places in Between",English,Drama,2020-03-16,15000.00,15000.00,Advance,"Development Program",
2019-2020,P4,"Level Film Inc.",Toronto,Ontario,Canada,"Anthem of a Teenage Prophet",English,,2020-03-26,26895.00,26895.00,Advance,"Marketing Program",
2019-2020,P4,"Boomtalk Musical Production Inc.",Winnipeg,Manitoba,Canada,"Stand! (aka Strike!)",English,Musical,2020-01-29,125000.00,125000.00,Advance,"Marketing Program",
2019-2020,P4,"Max Films OSM Inc.",Montreal,Quebec,Canada,CHAAKAPESH,French,Documentary,2020-01-23,85000.00,85000.00,Contribution,"Theatrical Documentary Program",
2019-2020,P4,"G.P.A. Films Inc.",Longueuil,Quebec,Canada,"Seule au front",French,Drama,2020-02-24,15000.00,15000.00,Advance,"Development Program",
2019-2020,P4,"Trailer Park Productions Limited",Halifax,"Nova Scotia",Canada,"My Dad Is Fucked",English,Comedy,2020-01-23,40000.00,40000.00,Advance,"Development Program",
2019-2020,P4,"Trailer Park Productions Limited",Halifax,"Nova Scotia",Canada,"The Kidnapping of Alexander Mogilny",English,Drama,2020-01-23,40000.00,40000.00,Advance,"Development Program",
2019-2020,P4,"8314136 Canada Inc.",Charlottetown,"Prince Edward Island",Canada,"Chase the Ace",English,Comedy,2020-03-18,15000.00,15000.00,Advance,"Development Program",
2019-2020,P4,"Lumanity Productions Inc.",Toronto,Ontario,Canada,"Delia's Gone",English,Drama,2020-03-12,20000.00,20000.00,Advance,"Development Program",
2019-2020,P4,"Festival cin�ma du monde de Sherbrooke",Sherbrooke,Quebec,Canada,"Festival cin�ma du monde de Sherbrooke",,,2020-02-04,5000.00,5000.00,Contribution,"Promotion Program",
2019-2020,P4,"Opus 59 Films Inc.",Vancouver,"British Columbia",Canada,"Stanley Park",English,Drama,2020-02-12,15000.00,15000.00,Advance,"Development Program",
2019-2020,P4,"Film Forge Productions Inc.",Toronto,Ontario,Canada,Mizeria,,,2020-03-24,1500.00,1500.00,Contribution,"International Marketing Program",
2019-2020,P4,"1976 Productions inc.",Montreal,Quebec,Canada,"Le Pacte",French,Horror,2020-03-09,15000.00,15000.00,Advance,"Development Program",
2019-2020,P4,"Films 53/12 Inc.",Montreal,Quebec,Canada,"De jour en jour",French,"Science fiction/Fantasy/Tale",2020-02-26,15000.00,15000.00,Advance,"Development Program",
2019-2020,P4,"Films du Boulevard Inc.",Montreal,Quebec,Canada,"Devenir un monstre",French,Drama,2020-02-27,15000.00,15000.00,Advance,"Development Program",
2019-2020,P4,"Canadian Media Producers Association - Association canadienne de la production m�diatique",Toronto,Ontario,Canada,"Prime Time 20, Export Development Mentorship Program 20-21",,,2020-01-16,55000.00,55000.00,Contribution,"Promotion Program",
2019-2020,P4,"Full Plate Productions Incorporated",Hamilton,Ontario,Canada,"A Bad Day for Voodoo",English,Comedy,2020-02-27,15000.00,15000.00,Advance,"Development Program",
2019-2020,P4,"Lady Hammond Entertainment Inc.",Dartmouth,"Nova Scotia",Canada,"When The Saints",English,Drama,2020-02-19,15000.00,15000.00,Advance,"Development Program",
2019-2020,P4,"Mark Sawers Productions Ltd.","West Vancouver","British Columbia",Canada,Splitsville,English,Comedy,2020-03-16,15000.00,15000.00,Advance,"Development Program",
2019-2020,P4,"Amerique Film Inc.",Montreal,Quebec,Canada,"J�ai perdu mon mari",French,Comedy,2020-03-24,15000.00,15000.00,Advance,"Development Program",
2019-2020,P4,"Firecrackers Film Incorporated",Bolton,Ontario,Canada,MONSTERS,English,Drama,2020-03-24,15000.00,15000.00,Advance,"Development Program",
2019-2020,P4,"9151-1766 Qu�bec Inc.",Montreal,Quebec,Canada,"Le Lys, l'�rable et le jasmin",French,Drama,2020-02-21,15000.00,15000.00,Advance,"Development Program",
2019-2020,P4,"Tohkapi Cinema Ltd.","North Vancouver","British Columbia",Canada,"Disappearing Moon",English,Drama,2020-03-16,18000.00,18000.00,Advance,"Development Program",
2019-2020,P4,"Newfoundland Independent Filmmakers Co-Operative","St. John's",Newfoundland/Labrador,Canada,"Picture Start",,,2020-01-30,44000.00,44000.00,Contribution,"Promotion Program",
2019-2020,P4,"K.O. 24 Inc.",Montreal,Quebec,Canada,"Quitte � tout perdre",French,Comedy,2020-02-26,15000.00,15000.00,Advance,"Development Program",
2019-2020,P4,"Caravane Films Productions",Chicoutimi,Quebec,Canada,"Festival REGARD / March� du court",,,2020-02-18,39659.00,39659.00,Contribution,"Promotion Program",
2019-2020,P4,"Festival International du Film sur l'Art",Montreal,Quebec,Canada,"Festival International du Film sur l'Art",,,2020-02-11,34608.00,34608.00,Contribution,"Promotion Program",
2019-2020,P4,"Documentary Organization of Canada",Toronto,Ontario,Canada,"Festival Concierge",,,2020-03-27,8000.00,8000.00,Contribution,"Promotion Program",
2019-2020,P4,"Experimental Forest Films Inc.",Vancouver,"British Columbia",Canada,Fire,English,Drama,2020-02-12,15000.00,15000.00,Advance,"Development Program",
2019-2020,P4,"Experimental Forest Films Inc.",Vancouver,"British Columbia",Canada,Inedia,English,Drama,2020-02-12,15000.00,15000.00,Advance,"Development Program",
2019-2020,P4,"Experimental Forest Films Inc.",Vancouver,"British Columbia",Canada,"The Narrow Edge",English,Drama,2020-02-12,15000.00,15000.00,Advance,"Development Program",
2019-2020,P4,"Films Du Paria Inc. (les)",Longueuil,Quebec,Canada,Ababouin�,French,Comedy,2020-03-20,15000.00,15000.00,Advance,"Development Program",
2019-2020,P4,"Forum Films 2005 Inc.",Montreal,Quebec,Canada,"Le soldat",French,Drama,2020-01-10,42540.00,42540.00,Advance,"Development Program",
2019-2020,P4,"Foundry Films Inc.",Toronto,Ontario,Canada,"Bayou Of Pigs",English,Drama,2020-03-06,15000.00,15000.00,Advance,"Development Program",
2019-2020,P4,"LES PRODUCTIONS KINESIS INC.",Montreal,Quebec,Canada,"La b�te noire",French,Drama,2020-03-09,15000.00,15000.00,Advance,"Development Program",
2019-2020,P4,"9219-3010 Qu�bec inc.",Montreal,Quebec,Canada,"La Mystique",French,Horror,2020-01-16,25000.00,25000.00,Advance,"Development Program",
2019-2020,P4,"Picture Plant Limited",Kingsburg,"Nova Scotia",Canada,"Execution Blues",English,"Historical Drama",2020-02-26,15000.00,15000.00,Advance,"Development Program",
2019-2020,P4,"Black Dog Films Inc.",Halifax,"Nova Scotia",Canada,"The Girl in the Yellow Dress",English,Mystery/Crime/Police,2020-02-12,15000.00,15000.00,Advance,"Development Program",
2019-2020,P4,"EMA FILMS INC.",Montreal,Quebec,Canada,"The Ledge",English,Comedy,2020-02-12,15000.00,15000.00,Advance,"Development Program",
2019-2020,P4,"EMA FILMS INC.",Montreal,Quebec,Canada,"26 Seconds",English,Drama,2020-02-12,20000.00,20000.00,Advance,"Development Program",
2019-2020,P4,"EMA FILMS INC.",Montreal,Quebec,Canada,"La maison de Micha (titre de travail)",French,Drama,2020-02-12,20000.00,20000.00,Advance,"Development Program",
2019-2020,P4,"Mad Samurai Productions Inc.",Richmond,"British Columbia",Canada,"Hard Home",English,Horror,2020-03-11,25000.00,25000.00,Advance,"Development Program",
2019-2020,P4,"Mad Samurai Productions Inc.",Richmond,"British Columbia",Canada,"Hunting Season",English,"Science fiction/Fantasy/Tale",2020-03-11,15000.00,15000.00,Advance,"Development Program",
2019-2020,P4,"Mad Samurai Productions Inc.",Richmond,"British Columbia",Canada,Trust/Fall,English,Thriller,2020-03-11,15000.00,15000.00,Advance,"Development Program",
2019-2020,P4,"Play Your Gender Inc.",Dartmouth,"Nova Scotia",Canada,"LOSING LEWIS",English,Comedy,2020-03-11,15000.00,15000.00,Advance,"Development Program",
2019-2020,P4,"Farpoint Films Inc.",Winnipeg,Manitoba,Canada,"Inner Alchemy",English,Drama,2020-03-13,15000.00,15000.00,Advance,"Development Program",
2019-2020,P4,"CUT/OFF/TAIL Pictures Inc.","West Pennant","Nova Scotia",Canada,NDE,English,Horror,2020-03-16,15000.00,15000.00,Advance,"Development Program",
2019-2020,P4,"CUT/OFF/TAIL Pictures Inc.","West Pennant","Nova Scotia",Canada,Feed,English,Thriller,2020-03-16,15000.00,15000.00,Advance,"Development Program",
2019-2020,P4,"CUT/OFF/TAIL Pictures Inc.","West Pennant","Nova Scotia",Canada,"The Willows",English,Thriller,2020-03-16,15000.00,15000.00,Advance,"Development Program",
2019-2020,P4,"7887515 Canada inc",Montreal,Quebec,Canada,Consent,English,Drama,2020-02-19,15000.00,15000.00,Advance,"Development Program",
2019-2020,P4,"A71 Entertainment Inc.",Toronto,Ontario,Canada,"Red Snow",English,,2020-03-12,86583.00,86583.00,Advance,"Marketing Program",
2019-2020,P4,"Idlewild Films Limited",Halifax,"Nova Scotia",Canada,"The Burning Sky",English,Drama,2020-02-10,15000.00,15000.00,Advance,"Development Program",
2019-2020,P4,"Rezolution Pictures International Inc.",Outremont,Quebec,Canada,"The Oldest Trip in the Book",English,Documentary,2020-02-10,15000.00,15000.00,Advance,"Development Program",
2019-2020,P4,"South Creek Pictures Inc.","Lions Bay","British Columbia",Canada,"West Of Dead",English,Action/Adventure,2020-03-17,20000.00,20000.00,Advance,"Development Program",
2019-2020,P4,"Film Forge Productions Inc.",Toronto,Ontario,Canada,CUTBLOCK,English,Drama,2020-03-10,15000.00,15000.00,Advance,"Development Program",
2019-2020,P4,"Film Forge Productions Inc.",Toronto,Ontario,Canada,"Infinity Pool",English,Thriller,2020-03-10,20000.00,20000.00,Advance,"Development Program",
2019-2020,P4,"Bravo Charlie inc.",Montreal,Quebec,Canada,"La Coureuse",French,Drama,2020-03-09,15000.00,15000.00,Advance,"Development Program",
2019-2020,P4,"Films Vision 4 Inc.",Montreal,Quebec,Canada,"Quatre contre les loups",French,Action/Adventure,2020-01-14,30000.00,30000.00,Advance,"Development Program",
2019-2020,P4,"Transmar Films Inc.",Montreal,Quebec,Canada,"Labrador ou L'anatomie du silence",French,Drama,2020-02-28,15000.00,15000.00,Advance,"Development Program",
2019-2020,P4,"Possibles M�dia inc.",Montreal,Quebec,Canada,"La campagne",French,Drama,2020-03-12,15000.00,15000.00,Advance,"Development Program",
2019-2020,P4,"Impossible Objects Inc.",Toronto,Ontario,Canada,AURORA,English,Thriller,2020-03-26,15000.00,15000.00,Advance,"Development Program",
2019-2020,P4,"Reality Distortion Field Inc.",Vancouver,"British Columbia",Canada,"Helen of Vetka",English,"Science fiction/Fantasy/Tale",2020-03-10,15000.00,15000.00,Advance,"Development Program",
2019-2020,P4,"Bunk 11 Pictures Inc.",Ottawa,Ontario,Canada,"Playing with Fire",English,Thriller,2020-03-16,15000.00,15000.00,Advance,"Development Program",
2019-2020,P4,"Woods Entertainment Canada Inc.",Toronto,Ontario,Canada,"The Long Fall",English,Mystery/Crime/Police,2020-03-18,15000.00,15000.00,Advance,"Development Program",
2019-2020,P4,"Cin�maginaire inc.",Montreal,Quebec,Canada,Menteuse,French,Comedy,2020-02-05,63500.00,63500.00,Advance,"Development Program",
2019-2020,P4,"Cin�maginaire inc.",Montreal,Quebec,Canada,"Fille de ma m�re",French,Drama,2020-02-05,15000.00,15000.00,Advance,"Development Program",
2019-2020,P4,"Cin�maginaire inc.",Montreal,Quebec,Canada,"La fille de son p�re ( P�re et filles)",French,Drama,2020-02-05,42000.00,42000.00,Advance,"Development Program",
2019-2020,P4,"Cin�maginaire inc.",Montreal,Quebec,Canada,"R�volution 60",French,Drama,2020-02-05,20000.00,20000.00,Advance,"Development Program",
2019-2020,P4,"Cin�maginaire inc.",Montreal,Quebec,Canada,"Les Belles-Soeurs",French,Musical,2020-02-05,58000.00,58000.00,Advance,"Development Program",
2019-2020,P4,"Cin�maginaire inc.",Montreal,Quebec,Canada,"Temps des F�tes (Le)",French,"Science fiction/Fantasy/Tale",2020-02-05,16500.00,16500.00,Advance,"Development Program",
2019-2020,P4,"Markham Street Films Inc.",Stratford,Ontario,Canada,"Your Life is Mine",English,Mystery/Crime/Police,2020-03-12,15000.00,15000.00,Advance,"Development Program",
2019-2020,P4,"Trinica Entertainment Consultants Inc.",Montreal,Quebec,Canada,"26 Knots",English,Drama,2020-01-30,20000.00,20000.00,Advance,"Development Program",
2019-2020,P4,"Productions l'unit� centrale inc.",Montreal,Quebec,Canada,"Copenhague Film Festival",French,Drama,2020-03-06,15000.00,15000.00,Advance,"Development Program",
2019-2020,P4,"Productions l'unit� centrale inc.",Montreal,Quebec,Canada,SexGarage,French,Drama,2020-03-06,15000.00,15000.00,Advance,"Development Program",
2019-2020,P4,"Productions Avenida inc.",Montreal,Quebec,Canada,"Les �toiles filantes",French,"Romantic Comedy",2020-02-28,15000.00,15000.00,Advance,"Development Program",
2019-2020,P4,"Productions Caramel Film Inc.",Montreal,Quebec,Canada,"Le Retour de Silverman",French,Comedy,2020-02-10,34181.00,34181.00,Advance,"Development Program",
2019-2020,P4,"Productions Caramel Film Inc.",Montreal,Quebec,Canada,"Paul 2",French,Comedy,2020-02-10,62474.00,62474.00,Advance,"Development Program",
2019-2020,P4,"Productions Caramel Film Inc.",Montreal,Quebec,Canada,"L'App�t du bien",French,Drama,2020-02-10,29456.00,29456.00,Advance,"Development Program",
2019-2020,P4,"Productions Caramel Film Inc.",Montreal,Quebec,Canada,"Visite Libre",French,Horror,2020-02-10,39561.00,39561.00,Advance,"Development Program",
2019-2020,P4,"Productions Caramel Film Inc.",Montreal,Quebec,Canada,L'Anglais,English,"Romantic Comedy",2020-02-10,34328.00,34328.00,Advance,"Development Program",
2019-2020,P4,"Gearshift Films Inc.",Toronto,Ontario,Canada,Nextworld,English,"Science fiction/Fantasy/Tale",2020-02-12,15000.00,15000.00,Advance,"Development Program",
2019-2020,P4,"Films Outsiders Inc. (Les)",Verdun,Quebec,Canada,"LA JOIE",French,Documentary,2020-03-06,30000.00,30000.00,Advance,"Development Program",
2019-2020,P4,"Scythia Films Inc.",Toronto,Ontario,Canada,"Eden Express",English,Drama,2020-03-03,15000.00,15000.00,Advance,"Development Program",
2019-2020,P4,"Goodbye Productions Inc.",Vancouver,"British Columbia",Canada,"The Bearded Girl",English,Drama,2020-03-11,15000.00,15000.00,Advance,"Development Program",
2019-2020,P4,"Goodbye Productions Inc.",Vancouver,"British Columbia",Canada,ELLE,English,"Historical Drama",2020-03-11,15000.00,15000.00,Advance,"Development Program",
2019-2020,P4,"Alcina Pictures Ltd.",Toronto,Ontario,Canada,"Sharp Corner",English,Thriller,2020-03-13,15000.00,15000.00,Advance,"Development Program",
2019-2020,P4,"Rodeo Queen Pictures Inc.",Vancouver,"British Columbia",Canada,Stock,English,"Historical Drama",2020-03-18,15000.00,15000.00,Advance,"Development Program",
2019-2020,P4,"Microclimat Films Inc.",Montreal,Quebec,Canada,"The Touch of Her Flesh",English,Drama,2020-03-05,15000.00,15000.00,Advance,"Development Program",
2019-2020,P4,"Microclimat Films Inc.",Montreal,Quebec,Canada,"Le Train",French,"Science fiction/Fantasy/Tale",2020-03-05,15000.00,15000.00,Advance,"Development Program",
2019-2020,P4,"The Film Farm Inc.",Toronto,Ontario,Canada,Honourable?,English,Drama,2020-02-12,48800.00,48800.00,Advance,"Development Program",
2019-2020,P4,"Darius Films Inc.",Toronto,Ontario,Canada,"Tales of the Thunderbird",English,Action/Adventure,2020-03-13,15000.00,15000.00,Advance,"Development Program",
2019-2020,P4,"Darius Films Inc.",Toronto,Ontario,Canada,"Kill Them All",English,Drama,2020-03-13,25000.00,25000.00,Advance,"Development Program",
2019-2020,P4,"Flimshow Inc.",Toronto,Ontario,Canada,"T'ES BELLE MARYSE",French,Drama,2020-03-09,15000.00,15000.00,Advance,"Development Program",
2019-2020,P4,"First Take Entertainment Ltd.",Oakville,Ontario,Canada,"Bad Seeds",English,"Romantic Comedy",2020-03-24,52150.00,52150.00,Advance,"Development Program",
2019-2020,P4,"First Take Entertainment Ltd.",Oakville,Ontario,Canada,Re-Arranged,English,"Romantic Comedy",2020-03-24,47700.00,47700.00,Advance,"Development Program",
2019-2020,P4,"Wildling Pictures Inc.",Toronto,Ontario,Canada,"Max and Olga Don't Want Children",English,"Romantic Comedy",2020-03-05,15000.00,15000.00,Advance,"Development Program",
2019-2020,P4,"Artemis Films Inc.",Montreal,Quebec,Canada,Tricheurs,French,Comedy,2020-02-24,15000.00,15000.00,Advance,"Development Program",
2019-2020,P4,"Christie Street Creative Inc.","New Westminster","British Columbia",Canada,"Game 7",English,Documentary,2020-02-17,15000.00,15000.00,Advance,"Development Program",
2019-2020,P4,"Manis Film Consultants Inc.",Toronto,Ontario,Canada,Reprise,English,"Historical Drama",2020-03-20,20000.00,20000.00,Advance,"Development Program",
2019-2020,P4,"Crawlspace Films, Inc.","St. John's",Newfoundland/Labrador,Canada,"Sweet Angel Baby",English,Drama,2020-03-17,15000.00,15000.00,Advance,"Development Program",
2019-2020,P4,"Crawlspace Films, Inc.","St. John's",Newfoundland/Labrador,Canada,"The Street",English,Drama,2020-03-17,20000.00,20000.00,Advance,"Development Program",
2019-2020,P4,"Greenground Productions Inc.",Montreal,Quebec,Canada,"Our Trespasses",English,Drama,2020-03-25,15000.00,15000.00,Advance,"Development Program",
2019-2020,P4,"Association coop�rative de productions audio-visuelles",Montreal,Quebec,Canada,"FRED ET LUCIE",French,Drama,2020-03-10,15000.00,15000.00,Advance,"Development Program",
2019-2020,P4,"Association coop�rative de productions audio-visuelles",Montreal,Quebec,Canada,"PAULETTE & AUGUSTINE",French,Drama,2020-03-10,18732.00,18732.00,Advance,"Development Program",
2019-2020,P4,"Association coop�rative de productions audio-visuelles",Montreal,Quebec,Canada,D�MENCE,French,Mystery/Crime/Police,2020-03-10,16268.00,16268.00,Advance,"Development Program",
2019-2020,P4,"Association coop�rative de productions audio-visuelles",Montreal,Quebec,Canada,"LE SILENCE",French,Mystery/Crime/Police,2020-03-10,15000.00,15000.00,Advance,"Development Program",
2019-2020,P4,"Association coop�rative de productions audio-visuelles",Montreal,Quebec,Canada,"L'AUTRE SOEUR",French,Thriller,2020-03-10,15000.00,15000.00,Advance,"Development Program",
2019-2020,P4,"Thoughts From The Asylum Productions Ltd.",Vancouver,"British Columbia",Canada,"Winners and Losers",English,Comedy,2020-01-15,15000.00,15000.00,Advance,"Development Program",
2019-2020,P4,"Thoughts From The Asylum Productions Ltd.",Vancouver,"British Columbia",Canada,"Before Us",English,Drama,2020-01-15,30000.00,30000.00,Advance,"Development Program",
2019-2020,P4,"Eye Steel Film Inc.",Montreal,Quebec,Canada,"The Westoxicateds",English,Documentary,2020-02-14,15000.00,15000.00,Advance,"Development Program",
2019-2020,P4,"Screen Siren Pictures Inc.",Vancouver,"British Columbia",Canada,"Saving Manno",English,Drama,2020-02-14,96880.00,96880.00,Advance,"Development Program",
2019-2020,P4,"Screen Siren Pictures Inc.",Vancouver,"British Columbia",Canada,"The Unimaginable",English,Drama,2020-02-14,51632.00,51632.00,Advance,"Development Program",
2019-2020,P4,"Screen Siren Pictures Inc.",Vancouver,"British Columbia",Canada,Tombs,English,"Historical Drama",2020-02-14,51452.00,51452.00,Advance,"Development Program",
2019-2020,P4,"Microscope Inc.",Montreal,Quebec,Canada,"Modern Knots",English,Comedy,2020-02-19,30500.00,30500.00,Advance,"Development Program",
2019-2020,P4,"Microscope Inc.",Montreal,Quebec,Canada,"BONNE RETRAITE, JOCELYNE",French,Comedy,2020-02-19,30000.00,30000.00,Advance,"Development Program",
2019-2020,P4,"Microscope Inc.",Montreal,Quebec,Canada,"LE DERNIER R�F�RENDUM",French,Comedy,2020-02-19,24500.00,24500.00,Advance,"Development Program",
2019-2020,P4,"Microscope Inc.",Montreal,Quebec,Canada,"Les mondes de Hamdi",French,Drama,2020-02-19,15000.00,15000.00,Advance,"Development Program",
2019-2020,P4,"Microscope Inc.",Montreal,Quebec,Canada,"Un Deux",French,Drama,2020-02-19,20000.00,20000.00,Advance,"Development Program",
2019-2020,P4,"Microscope Inc.",Montreal,Quebec,Canada,"Midnight King",English,"Science fiction/Fantasy/Tale",2020-02-19,95000.00,95000.00,Advance,"Development Program",
2019-2020,P4,"Solo Productions Inc.",Toronto,Ontario,Canada,"Us in 9 Months",English,Comedy,2020-03-17,15000.00,15000.00,Advance,"Development Program",
2019-2020,P4,"Solo Productions Inc.",Toronto,Ontario,Canada,"Armstrong's War",English,Drama,2020-03-17,20000.00,20000.00,Advance,"Development Program",
2019-2020,P4,"Karma Film Inc.",Saskatoon,Saskatchewan,Canada,"Indians in Cowtown",English,Comedy,2020-02-19,15000.00,15000.00,Advance,"Development Program",
2019-2020,P4,"Karma Film Inc.",Saskatoon,Saskatchewan,Canada,"Laws of Love",English,Documentary,2020-02-19,15000.00,15000.00,Advance,"Development Program",
2019-2020,P4,"Karma Film Inc.",Saskatoon,Saskatchewan,Canada,"Cosmic Current",English,Drama,2020-02-19,15000.00,15000.00,Advance,"Development Program",
2019-2020,P4,"Plausible Communications Corporation",Toronto,Ontario,Canada,Backspot,English,Drama,2020-03-10,15000.00,15000.00,Advance,"Development Program",
2019-2020,P4,"Plausible Communications Corporation",Toronto,Ontario,Canada,"The Shrouds",English,Drama,2020-03-10,45482.00,45482.00,Advance,"Development Program",
2019-2020,P4,"Plausible Communications Corporation",Toronto,Ontario,Canada,"Shakespeare & Co",English,"Historical Drama",2020-03-10,18392.00,18392.00,Advance,"Development Program",
2019-2020,P4,"Buffalo Gal Pictures Inc.",Winnipeg,Manitoba,Canada,"Down Low",English,Drama,2020-03-16,15000.00,15000.00,Advance,"Development Program",
2019-2020,P4,"Buffalo Gal Pictures Inc.",Winnipeg,Manitoba,Canada,"The Blue Castle",English,Drama,2020-03-16,30000.00,30000.00,Advance,"Development Program",
2019-2020,P4,"Buffalo Gal Pictures Inc.",Winnipeg,Manitoba,Canada,"Evening Chorus",English,"Historical Drama",2020-03-16,35000.00,35000.00,Advance,"Development Program",
2019-2020,P4,"Alyson Richards Productions Inc.",Hamilton,Ontario,Canada,Oops,English,Comedy,2020-02-12,15000.00,15000.00,Advance,"Development Program",
2019-2020,P4,"Circle Blue Films Inc.",Mississauga,Ontario,Canada,Orah,English,Drama,2020-02-14,15000.00,15000.00,Advance,"Development Program",
2019-2020,P4,"Zazie Films Inc.",Toronto,Ontario,Canada,"Cap Diamant",French,Drama,2020-03-23,15000.00,15000.00,Advance,"Development Program",
2019-2020,P4,"Howie Role Productions Inc.",Vancouver,"British Columbia",Canada,"Project Ivan",English,"Science fiction/Fantasy/Tale",2020-02-12,15000.00,15000.00,Advance,"Development Program",
2019-2020,P4,"Howie Role Productions Inc.",Vancouver,"British Columbia",Canada,"Six Days 'Til Midnight",English,Thriller,2020-02-12,15000.00,15000.00,Advance,"Development Program",
2019-2020,P4,"Bel Ange Moon Productions Inc.",Laval,Quebec,Canada,Incandescence,French,Drama,2020-02-24,15000.00,15000.00,Advance,"Development Program",
2019-2020,P4,"Clumsy Ophelia Productions Inc.",Toronto,Ontario,Canada,Enduring,English,Drama,2020-02-12,15000.00,15000.00,Advance,"Development Program",
2019-2020,P4,"Massey Productions Ltd.",Vancouver,"British Columbia",Canada,"The Paris Quintet",English,Comedy,2020-02-13,15000.00,15000.00,Advance,"Development Program",
2019-2020,P4,"Holdfast Pictures Inc.",Halifax,"Nova Scotia",Canada,"Birds In Fall",English,Drama,2020-03-30,15000.00,15000.00,Advance,"Development Program",
2019-2020,P4,"Realm Productions & Advertising Inc.","Saint John","New Brunswick",Canada,Hellscape,English,Horror,2020-02-19,15000.00,15000.00,Advance,"Development Program",
2019-2020,P4,"Freddie Films Inc.",Toronto,Ontario,Canada,"Eye of the Hurricane",English,Documentary,2020-03-03,15000.00,15000.00,Advance,"Development Program",
2019-2020,P4,"Couzin Films Inc.",Montreal,Quebec,Canada,L2f2,French,Drama,2020-03-10,15000.00,15000.00,Advance,"Development Program",
2019-2020,P4,"Couzin Films Inc.",Montreal,Quebec,Canada,Sapins,French,"Romantic Comedy",2020-03-10,15000.00,15000.00,Advance,"Development Program",
2019-2020,P4,"Zyl Productions Inc.",Vancouver,"British Columbia",Canada,"Last Year",English,Drama,2020-02-18,15000.00,15000.00,Advance,"Development Program",
2019-2020,P4,"Zyl Productions Inc.",Vancouver,"British Columbia",Canada,Pyramiden,English,Horror,2020-02-18,20000.00,20000.00,Advance,"Development Program",
2019-2020,P4,"Spotted Fawn Productions Inc.",Vancouver,"British Columbia",Canada,Noopiming,English,Drama,2020-03-18,18000.00,18000.00,Advance,"Development Program",
2019-2020,P4,"Eagle Vision Inc.",Winnipeg,Manitoba,Canada,"Jane Garbage",English,Comedy,2020-03-06,15000.00,15000.00,Advance,"Development Program",
2019-2020,P4,"9205-8494 Qu�bec Inc.",Longueuil,Quebec,Canada,"WHEN THE GODS DANCE",English,"Science fiction/Fantasy/Tale",2020-02-10,15000.00,15000.00,Advance,"Development Program",
2019-2020,P4,"Devout Productions Ltd.",Victoria,"British Columbia",Canada,"Alice in the Wall",English,Drama,2020-03-16,15000.00,15000.00,Advance,"Development Program",
2019-2020,P4,"H Is For Productions Inc.",Toronto,Ontario,Canada,Omerta,English,Drama,2020-03-26,20000.00,20000.00,Advance,"Development Program",
2019-2020,P4,"Shadow Shows Incorporated",Toronto,Ontario,Canada,"Little Sister",English,Thriller,2020-03-17,15000.00,15000.00,Advance,"Development Program",
2019-2020,P4,"Shadow Shows Incorporated",Toronto,Ontario,Canada,"Sallie Chisum Loves Pat Garrett and Billy The Kid",English,Western,2020-03-17,15000.00,15000.00,Advance,"Development Program",
2019-2020,P4,"Free Spirit Films Inc.",Toronto,Ontario,Canada,"THE WOMAN WHO LOVES GIRAFFES",English,Drama,2020-02-14,15000.00,15000.00,Advance,"Development Program",
2019-2020,P4,"Cin� Qu�bec",Boucherville,Quebec,Canada,"Cin� Qu�bec",,,2020-02-18,36048.00,36048.00,Contribution,"Promotion Program",
2019-2020,P4,"9402-9238 Qu�bec Inc.",Montreal,Quebec,Canada,"Saules aveugles, femme endormie",French,Drama,2020-03-26,300000.00,300000.00,Investment,"Production Program",
2019-2020,P4,"Hudson Festival of Canadian Film",Hudson,Quebec,Canada,"Hudson Festival of Canadian  Film",,,2020-01-30,2000.00,2000.00,Contribution,"Promotion Program",
2019-2020,P4,"Maison 4:3 Inc.",Montreal,Quebec,Canada,"TWENTIETH CENTURY (THE)",English,"Historical Drama",2020-01-20,68000.00,68000.00,Advance,"Marketing Program",
2019-2020,P4,"Productions Caramel Film Inc.",Montreal,Quebec,Canada,"La Cordonni�re",French,Drama,2020-03-23,0.00,150000.00,Advance,"Production Program","Amended Contract Signed 25-Nov-2019"
2019-2020,P4,"Productions Caramel Film Inc.",Montreal,Quebec,Canada,"La Cordonni�re",French,Drama,2020-03-23,150000.00,150000.00,Investment,"Production Program","Amended Contract Signed 25-Nov-2019"
2019-2020,P4,"Productions OPO inc / OPO Productions  inc.",Montreal,Quebec,Canada,"La r�vision",French,Drama,2020-02-05,691900.00,691900.00,Advance,"Production Program",
2019-2020,P4,"Rajotte Productions Inc.",Winnipeg,Manitoba,Canada,"Winnipeg Aboriginal Film and Video Festival  (WAFF)",,,2020-03-23,5000.00,5000.00,Contribution,"Promotion Program",
2019-2020,P4,"Calgary Underground Film Festival Society",Calgary,Alberta,Canada,"Calgary Underground Film Festival",,,2020-01-10,5000.00,5000.00,Contribution,"Promotion Program",
2019-2020,P4,"Storyline Fx Inc.",Winnipeg,Manitoba,Canada,"Freeze Frame Int'l Film Festival For Kids of All Ages",,,2020-01-08,9345.00,9345.00,Contribution,"Promotion Program",
2019-2020,P4,"Reel to Real: A Celebration Of Moving Images For Youth Society",Vancouver,"British Columbia",Canada,"Reel 2 Real International Film Festival for Youth",,,2020-01-20,7528.00,7528.00,Contribution,"Promotion Program",
2019-2020,P4,"Zeta Films srl","Buenos Aires",,Argentina,"""Charlotte a du fun/Slut in a good wayTitle in Argentina: """"Los amores de Charlotte""""""",English,,2020-02-26,5000.00,5000.00,Contribution,"Export Assistance Program",
2019-2020,P4,"Slow Motion Food Film Fest Society",Wolfville,"Nova Scotia",Canada,"Devour! The Food Film Fest",,,2020-03-20,7500.00,7500.00,Contribution,"Promotion Program",
2019-2020,P4,EUROZOOM,Paris,,France,"MISSION YETI",French,,2020-03-26,44000.00,44000.00,Contribution,"Export Assistance Program",
2019-2020,P4,"New Brunswick Filmmakers Co-operative Limited",Fredericton,"New Brunswick",Canada,"Short Film Venture Program",,,2020-03-20,15000.00,15000.00,Contribution,"Promotion Program",
2019-2020,P4,"Meridian Artists Inc.",Toronto,Ontario,Canada,"Toronto Screenwriting Conference",,,2020-02-25,8000.00,8000.00,Contribution,"Promotion Program",
2019-2020,P4,"ZETA FILMES","Belo Horizonte",,Brazil,"R�PERTOIRE DES VILLES DISPARUES",English,,2020-02-27,6000.00,6000.00,Contribution,"Export Assistance Program",
2019-2020,P4,"Les Productions N�m�sis Films inc.",Montreal,Quebec,Canada,Regret,,,2020-01-20,1500.00,1500.00,Contribution,"International Marketing Program",
2019-2020,P4,"Acad�mie canadienne du cin�ma et de la t�l�vision (section Qu�bec) Inc.",Montreal,Quebec,Canada,"Soir�e des finalistes aux prix �crans canadiens 2020",,,2020-02-05,6000.00,6000.00,Contribution,"Promotion Program",
2019-2020,P4,"Les Films Sanajik inc.",Longueuil,Quebec,Canada,"Sur les traces",French,Documentary,2020-03-30,18000.00,18000.00,Advance,"Development Program",
2019-2020,P4,"The Documentary Media Society",Vancouver,"British Columbia",Canada,"DOXA Documentary Film Festival",,,2020-01-08,10815.00,10815.00,Contribution,"Promotion Program",
2019-2020,P4,"2524681 Ontario Inc.",Hamilton,Ontario,Canada,Dumbbell,English,Comedy,2020-03-17,18000.00,18000.00,Advance,"Development Program",
2019-2020,P4,"THUNDERBIRDMANFILMS Inc.",Selkirk,Manitoba,Canada,"Highway 45",English,Drama,2020-03-16,18000.00,18000.00,Advance,"Development Program",
2019-2020,P4,"Association qu�b�coise de la production m�diatique",Montreal,Quebec,Canada,"Congr�s AQPM",,,2020-02-24,7000.00,7000.00,Contribution,"Promotion Program",
2019-2020,P4,"Rhombus Media Inc.",Toronto,Ontario,Canada,Possessor,,,2020-02-20,25000.00,25000.00,Contribution,"International Marketing Program",
2019-2020,P4,"Alberta Media Production Industries  Association (AMPIA)",Edmonton,Alberta,Canada,"AMPIA Professional Development 2020",,,2020-03-10,20000.00,20000.00,Contribution,"Promotion Program",
2019-2020,P4,"Code Breaker Films LTD.",Winnipeg,Manitoba,Canada,WWShe,English,Comedy,2020-03-31,18000.00,18000.00,Advance,"Development Program",
2019-2020,P4,"Lofty Sky Pictures Inc.",Toronto,Ontario,Canada,"Ask No Questions",,,2020-03-03,5000.00,5000.00,Contribution,"International Marketing Program",
2019-2020,P4,"Baswewe Films Inc.",Naughton,Ontario,Canada,"THE SAVAGE",English,Drama,2020-03-25,18000.00,18000.00,Advance,"Development Program",
2019-2020,P4,"First Nation Films LTD.",Janvier,Alberta,Canada,"ELVIS OF THE NORTH",English,Comedy,2020-03-24,18000.00,18000.00,Advance,"Development Program",
2019-2020,P4,"Fanning Feathers Productions Ltd.",Regina,Saskatchewan,Canada,"Evil Fire",English,Drama,2020-03-24,18000.00,18000.00,Advance,"Development Program",
2019-2020,P4,"Island Media Arts Co-Operative Limited",Charlottetown,"Prince Edward Island",Canada,"PEI Screenwriters' Bootcamp 2020",,,2020-02-10,15000.00,15000.00,Contribution,"Promotion Program",
2019-2020,P4,"Attraction Images inc.",Montreal,Quebec,Canada,"14 jours 12 nuits",,,2020-02-06,2500.00,2500.00,Contribution,"International Marketing Program",
2019-2020,P4,"Canadian Media Producers Association - Association canadienne de la production m�diatique",Toronto,Ontario,Canada,"Profile 2019",,,2020-01-15,15000.00,15000.00,Contribution,"Promotion Program",
2019-2020,P4,"Vues d'Afrique",Montreal,Quebec,Canada,"Festival international de cin�ma Vues d'Afrique",,,2020-02-05,17859.00,17859.00,Contribution,"Promotion Program",
2019-2020,P4,"Films S�ville Inc. (Les)",Montreal,Quebec,Canada,"Sympathie pour le Diable",French,Drama,2020-02-07,54500.00,54500.00,Advance,"Marketing Program",
2019-2020,P4,"Charles Taylor Theatre & Media Arts Association",Dartmouth,"Nova Scotia",Canada,"Emerging Lens Cultural Film Festival",,,2020-03-20,5000.00,5000.00,Contribution,"Promotion Program",
2019-2020,P4,"Women In Film & Television Vancouver Society",Vancouver,"British Columbia",Canada,"VIWFF and WIFT-V Genre Lab",,,2020-01-21,15000.00,15000.00,Contribution,"Promotion Program",
2019-2020,P4,"AVALON DA.",,,Spain,"Il Pleauvait des oiseaux",English,,2020-03-26,44000.00,44000.00,Contribution,"Export Assistance Program",
2019-2020,P4,"Film Zone Inc.",Moncton,"New Brunswick",Canada,"Festival international du cin�ma francophone en Acadie",,,2020-01-17,52808.00,52808.00,Contribution,"Promotion Program",
2019-2020,P4,"R�alisatrices �quitables",Montreal,Quebec,Canada,"Cin�-club Les Dames des vues",,,2020-01-15,10000.00,10000.00,Contribution,"Promotion Program",
2019-2020,P4,"Carrousel international du film de Rimouski (Le)",Rimouski,Quebec,Canada,"Carrousel international du film de Rimouski",,,2020-02-11,25152.00,25152.00,Contribution,"Promotion Program",
2019-2020,P4,"Winnipeg Film Group Inc.",Winnipeg,Manitoba,Canada,"Gimme Some Truth Documentary Festival",,,2020-02-28,3500.00,3500.00,Contribution,"Promotion Program",
2019-2020,P4,"Prends Ca Court! 2010 Inc.",St-Lambert,Quebec,Canada,"Bourse Prix Prends ca court 2020",,,2020-03-02,2500.00,2500.00,Contribution,"Promotion Program",
2019-2020,P4,"Femmes du cinema, de la television et des m�dias num�riques",Montreal,Quebec,Canada,"Programmation annuelle et gala FCTMN",,,2020-02-20,15000.00,15000.00,Contribution,"Promotion Program",
2019-2020,P4,"Eye Steel Film Distribution inc.",Montreal,Quebec,Canada,INFLUENCE,,,2020-03-17,22200.00,22200.00,Contribution,"International Marketing Program",
2019-2020,P4,"The Inside Out LGBT Film Festival Inc.",Toronto,Ontario,Canada,"Inside Out Toronto LGBT Film Festival",,,2020-03-25,5000.00,5000.00,Contribution,"Promotion Program",
2019-2020,P4,"The Charlottetown Film Society, Inc.",Charlottetown,"Prince Edward Island",Canada,"The Charlottetown Film Festival",,,2020-02-26,2500.00,2500.00,Contribution,"Promotion Program",
2019-2020,P4,"Reel Shorts Film Society","Grande Prairie",Alberta,Canada,"Reel Shorts Film Festival",,,2020-01-20,5000.00,5000.00,Contribution,"Promotion Program",
2019-2020,P4,"Stage Butternut Productions Inc.",Toronto,Ontario,Canada,"Stage: The Culinary Internship",,,2020-01-09,1500.00,1500.00,Contribution,"International Marketing Program",
2019-2020,P4,"Independent Web Series Creators of Canada",Toronto,Ontario,Canada,"TO Webfest",,,2020-01-08,5000.00,5000.00,Contribution,"Promotion Program",
2019-2020,P4,"The Film And Video Arts Society of Alberta",Edmonton,Alberta,Canada,"FAVA Studios Launch",,,2020-02-24,2500.00,2500.00,Contribution,"Promotion Program",
2019-2020,P4,"Northern Visions Independent Video & Film Association",Toronto,Ontario,Canada,"Images Festival",,,2020-03-19,15000.00,15000.00,Contribution,"Promotion Program",
2019-2020,P4,"ON SCREEN MANITOBA INCORPORATED",Winnipeg,Manitoba,Canada,"All Access 2020",,,2020-03-10,17000.00,17000.00,Contribution,"Promotion Program",
2019-2020,P4,"Voyelles Plages Inc.",Montreal,Quebec,Canada,"THE TWENTIETH CENTURY",,,2020-02-03,10000.00,10000.00,Contribution,"International Marketing Program",
2019-2020,P4,"GAME THEORY FILMS INC.",Toronto,Ontario,Canada,Spinster,English,Comedy,2020-03-23,30000.00,30000.00,Advance,"Marketing Program",
2019-2020,P4,"Entertainment One Films Canada Inc.",Toronto,Ontario,Canada,"The Kindness of Strangers",English,,2020-03-19,40328.00,40328.00,Advance,"Marketing Program",
2019-2020,P4,"Raven Banner Releasing Inc.",Toronto,Ontario,Canada,"Shoot To Marry",,,2020-03-27,3700.00,3700.00,Contribution,"International Marketing Program",
2019-2020,P4,"Les Productions Catbird Inc.",Montreal,Quebec,Canada,"Finding Sally",,,2020-01-20,4700.00,4700.00,Contribution,"International Marketing Program",
2019-2020,P4,"DM FILMS INC.",Toronto,Ontario,Canada,Chubby,,,2020-02-05,2500.00,2500.00,Contribution,"International Marketing Program",
2019-2020,P4,"Signature Dish Inc.",Mississauga,Ontario,Canada,"Nose to Tail",English,,2020-03-24,19057.00,19057.00,Advance,"Marketing Program",
2019-2020,P4,"Houseplant Films Inc.",Darmouth,"Nova Scotia",Canada,Murmur,,,2020-01-29,1500.00,1500.00,Contribution,"International Marketing Program",
2019-2020,P4,"Houseplant Films Inc.",Darmouth,"Nova Scotia",Canada,Murmur,,,2020-01-29,4700.00,4700.00,Contribution,"International Marketing Program",
2019-2020,P4,"2583035 ONTARIO INC.",Toronto,Ontario,Canada,"The 410",,,2020-03-09,2500.00,2500.00,Contribution,"International Marketing Program",
2019-2020,P4,"Endgame Films Corporation",Toronto,Ontario,Canada,"Easy Land",,,2020-01-20,2500.00,2500.00,Contribution,"International Marketing Program",
2019-2020,P4,"TINAM Inc.",Markham,Ontario,Canada,"This is Not a Movie",,,2020-03-13,1500.00,1500.00,Contribution,"International Marketing Program",
2019-2020,P4,"Banana-Moon Sky Films Inc.",Toronto,Ontario,Canada,"James vs His Future Self",,,2020-01-15,1500.00,1500.00,Contribution,"International Marketing Program",
2019-2020,P4,"STUDIOS DATSIT INTERNATIONAL INC.",Montreal,Quebec,Canada,"Mafia inc.",,,2020-01-24,1500.00,1500.00,Contribution,"International Marketing Program",
2019-2020,P4,"STUDIOS DATSIT INTERNATIONAL INC.",Montreal,Quebec,Canada,ANTIGONE,,,2020-01-24,1500.00,1500.00,Contribution,"International Marketing Program",
2019-2020,P4,"Films Outsiders Inc. (Les)",Verdun,Quebec,Canada,"Il pleuvait des oiseaux",,,2020-01-20,1500.00,1500.00,Contribution,"International Marketing Program",
2019-2020,P4,"Films Outsiders Inc. (Les)",Verdun,Quebec,Canada,"Il pleuvait des oiseaux",,,2020-01-22,1500.00,1500.00,Contribution,"International Marketing Program",
2019-2020,P4,"Films Outsiders Inc. (Les)",Verdun,Quebec,Canada,"Il pleuvait des oiseaux",,,2020-01-22,1500.00,1500.00,Contribution,"International Marketing Program",
2019-2020,P4,"Woods Entertainment Canada Inc.",Toronto,Ontario,Canada,"Castle in the Ground",,,2020-02-04,4000.00,4000.00,Contribution,"International Marketing Program",
2019-2020,P4,"Gobez Media Inc.",Nepean,Ontario,Canada,"The Last Tears of the Deceased",English,Drama,2020-02-12,1500.00,1500.00,Contribution,"International Marketing Program",
2019-2020,P4,"Endgame Films Corporation",Toronto,Ontario,Canada,"Easy Land",,,2020-01-20,1500.00,1500.00,Contribution,"International Marketing Program",
2019-2020,P4,"Le Foyer Films inc.",Montreal,Quebec,Canada,Richelieu,,,2020-03-16,1500.00,1500.00,Contribution,"International Marketing Program",
2019-2020,P4,"JA Productions Inc.",Oakville,Ontario,Canada,"Something You Said Last Night",,,2020-01-16,1500.00,1500.00,Contribution,"International Marketing Program",
2019-2020,P4,"Farnsworth Productions Inc.",Toronto,Ontario,Canada,"Farnsworth House",English,Drama,2020-03-30,2975576.00,2975576.00,Investment,"Production Program",
2019-2020,P4,"Films Outsiders Inc. (Les)",Verdun,Quebec,Canada,"Il pleuvait des oiseaux",,,2020-01-28,1500.00,1500.00,Contribution,"International Marketing Program",
2019-2020,P4,"STUDIOS DATSIT INTERNATIONAL INC.",Montreal,Quebec,Canada,ANTIGONE,,,2020-01-24,1500.00,1500.00,Contribution,"International Marketing Program",
2019-2020,P4,"Sea Green Pictures Inc.",Halifax,"Nova Scotia",Canada,Spinster,,,2020-02-05,5000.00,5000.00,Contribution,"International Marketing Program",
2019-2020,P4,"Leftside Pictures Ltd.",Calgary,Alberta,Canada,"A Walk Down To Water",,,2020-02-04,1700.00,1700.00,Contribution,"International Marketing Program",
2019-2020,P4,"Productions Festives",Trois-Rivieres,Quebec,Canada,"Je finirai en prison",,,2020-02-18,1500.00,1500.00,Contribution,"International Marketing Program",
2019-2020,P4,"Films S�ville Inc. (Les)",Montreal,Quebec,Canada,"Merci pour tout",French,Comedy,2020-02-07,236362.00,236362.00,Advance,"Marketing Program",
2019-2020,P4,"Productions l'unit� centrale inc.",Montreal,Quebec,Canada,"Vie d'un grand r�alisateur",,,2020-02-18,1500.00,1500.00,Contribution,"International Marketing Program",
2019-2020,P4,dreampoolpicturecorp.,Toronto,Ontario,Canada,Oracle,,,2020-02-10,1500.00,1500.00,Contribution,"International Marketing Program",
2019-2020,P4,"Black Conflux Productions NL Inc.",Montreal,Quebec,Canada,"Black Conflux",,,2020-03-18,4700.00,4700.00,Contribution,"International Marketing Program",
2019-2020,P4,"Eye Steel Film Distribution inc.",Montreal,Quebec,Canada,"Chomsky Vs Chomsky: First Encounter",,,2020-02-14,1500.00,1500.00,Contribution,"International Marketing Program",
2019-2020,P4,"Banana-Moon Sky Films Inc.",Toronto,Ontario,Canada,"James vs His Future Self",,,2020-01-15,1500.00,1500.00,Contribution,"International Marketing Program",
2019-2020,P4,"Younger Daughter Films Inc",Toronto,Ontario,Canada,"Broken Orchestra",,,2020-02-03,1700.00,1700.00,Contribution,"International Marketing Program",
2019-2020,P4,"1371097 Ontario Ltd. O/A CaribbeanTales",Toronto,Ontario,Canada,"HERO - Inspired By The Life & Times Of Mr. Ulric Cross",,,2020-03-11,1500.00,1500.00,Contribution,"International Marketing Program",
2019-2020,P4,"A71 Entertainment Inc.",Toronto,Ontario,Canada,"The Cuban",English,,2020-03-19,50000.00,50000.00,Advance,"Marketing Program",
2019-2020,P4,"9187-1608 Qu�bec inc",Longueuil,Quebec,Canada,"Les Fleurs oubli�es",,,2020-02-04,3000.00,3000.00,Contribution,"International Marketing Program",
2019-2020,P4,"Association coop�rative de productions audio-visuelles",Montreal,Quebec,Canada,"LE DERNIER REPAS",,,2020-02-10,1500.00,1500.00,Contribution,"International Marketing Program",
2019-2020,P4,"Wildling Pictures Inc.",Toronto,Ontario,Canada,"Hot Flash",,,2020-03-26,1700.00,1700.00,Contribution,"International Marketing Program",
2019-2020,P4,"775 Media Corp.",Calgary,Alberta,Canada,"Rotterdam Lab",,,2020-03-17,1500.00,1500.00,Contribution,"International Marketing Program",
2019-2020,P4,"Productions MFM Inc.",Montreal,Quebec,Canada,KUESSIPAN,,,2020-01-28,1500.00,1500.00,Contribution,"International Marketing Program",
2019-2020,P4,"Elevation Pictures Corp.",Toronto,Ontario,Canada,"LUCKY DAY",English,Action/Adventure,2020-03-05,99286.00,99286.00,Advance,"Marketing Program",
2019-2020,P4,"Elevation Pictures Corp.",Toronto,Ontario,Canada,"Code 8",English,"Science fiction/Fantasy/Tale",2020-03-09,130601.00,130601.00,Advance,"Marketing Program",
2019-2020,P4,"Elevation Pictures Corp.",Toronto,Ontario,Canada,"Song of Names",English,Drama,2020-03-05,630315.00,630315.00,Advance,"Marketing Program",
2019-2020,P4,"L'OEIL VIF (Faisant affaire sous le nom Les Films du 3 mars)",Montreal,Quebec,Canada,"NIN E TEPUIEAN - MON CRI",French,Documentary,2020-02-17,15000.00,15000.00,Advance,"Marketing Program",
2019-2020,P4,"11437267 Canada inc.",Gatineau,Quebec,Canada,"Rustic Oracle",English,,2020-03-23,56739.00,56739.00,Advance,"Marketing Program",
2019-2020,P4,"Panoramic Pictures Inc.","Conception Bay South",Newfoundland/Labrador,Canada,"Island West",,,2020-02-21,1500.00,1500.00,Contribution,"International Marketing Program",
2019-2020,P4,"Aiken Heart Films Inc.",Toronto,Ontario,Canada,"EAVE Luxembourg",,,2020-03-05,1500.00,1500.00,Contribution,"International Marketing Program",
2019-2020,P4,"Band With Pictures Film Inc. / Les Films Band With Pictures Inc.",Montreal,Quebec,Canada,"My Animal",,,2020-02-18,1500.00,1500.00,Contribution,"International Marketing Program",
2019-2020,P4,"Colonelle films inc.",Montreal,Quebec,Canada,"FLEUR BLEUE",French,Drama,2020-02-24,1500.00,1500.00,Contribution,"International Marketing Program",
2019-2020,P4,"Fragments Distribution Inc.",Montreal,Quebec,Canada,L'Acrobate,French,Drama,2020-02-04,18000.00,18000.00,Advance,"Marketing Program",
2019-2020,P4,"Les Productions Orange Films Inc.",Rosemere,Quebec,Canada,"Apocalypse Meow (aka Mr. Freeze et Allumette)",French,Action/Adventure,2020-02-26,500000.00,500000.00,Investment,"Production Program",
2019-2020,P4,"Maison 4:3 Inc.",Montreal,Quebec,Canada,"Les n�tres",French,Drama,2020-03-24,92582.00,92582.00,Advance,"Marketing Program",
2019-2020,P4,"SDP Entertainment Inc.","Richmond Hill",Ontario,Canada,"No Connection",,,2020-03-12,1500.00,1500.00,Contribution,"International Marketing Program",
2019-2020,P4,"Les Films R�deurs inc.",Montreal,Quebec,Canada,�cume,,,2020-03-06,1700.00,1700.00,Contribution,"International Marketing Program",
2019-2020,P4,"Julijette Inc.",Winnipeg,Manitoba,Canada,"Stump The Guesser",,,2020-03-05,2500.00,2500.00,Contribution,"International Marketing Program",
2019-2020,P4,"Curiosity Pictures Inc.",Burnaby,"British Columbia",Canada,"Until I Find You",,,2020-02-10,1500.00,1500.00,Contribution,"International Marketing Program",
2019-2020,P4,"Parkland Entertainment Limited",London,,"United Kingdom",Astronaut,English,,2020-03-04,24000.00,24000.00,Contribution,"Export Assistance Program",
2019-2020,P4,"Independent Edge Films Inc.",Vancouver,"British Columbia",Canada,"The Pioneer",English,Comedy,2020-03-10,15000.00,15000.00,Advance,"Development Program",
2019-2020,P4,"Independent Edge Films Inc.",Vancouver,"British Columbia",Canada,"North of Normal",English,Drama,2020-03-10,15000.00,15000.00,Advance,"Development Program",
2019-2020,P4,"Independent Edge Films Inc.",Vancouver,"British Columbia",Canada,"Charlie For Your Thoughts",English,"Science fiction/Fantasy/Tale",2020-03-10,15000.00,15000.00,Advance,"Development Program",
2019-2020,P4,"Outsider Films Lda",Lisbon,,Portugal,"The Kindness of Strangers",English,,2020-02-19,39000.00,39000.00,Contribution,"Export Assistance Program",
2019-2020,P4,"Copperheart Entertainment Inc.",Toronto,Ontario,Canada,"Dark Carousel",English,Horror,2020-01-30,40000.00,40000.00,Advance,"Development Program",
2019-2020,P4,"GAME THEORY FILMS INC.",Toronto,Ontario,Canada,Ash,English,Drama,2020-03-20,37500.00,37500.00,Advance,"Marketing Program",
2019-2020,P4,"Distribution H264",Montreal,Quebec,Canada,"Goodbye Golovin",,,2020-03-10,1700.00,1700.00,Contribution,"International Marketing Program",
2019-2020,P4,"Cardinal Pictures Inc.",Toronto,Ontario,Canada,SUZE,English,Comedy,2020-03-30,15000.00,15000.00,Advance,"Development Program",
2019-2020,P4,"Distribution H264",Montreal,Quebec,Canada,"Celle qui porte la pluie",,,2020-02-28,1700.00,1700.00,Contribution,"International Marketing Program",
2019-2020,P4,"Productions l'unit� centrale inc.",Montreal,Quebec,Canada,"ACE Animation Forum",,,2020-03-24,1500.00,1500.00,Contribution,"International Marketing Program",
2019-2020,P4,"Mercury Films Inc.",Toronto,Ontario,Canada,Transcendence,English,Documentary,2020-02-18,35000.00,35000.00,Advance,"Development Program",
2019-2020,P4,"STUDIOS DATSIT INTERNATIONAL INC.",Montreal,Quebec,Canada,"La d�esse des mouches � feu",,,2020-03-03,25000.00,25000.00,Contribution,"International Marketing Program",
2019-2020,P4,"S.N.A.P. Films Inc.",Toronto,Ontario,Canada,"The Cuban",,,2020-03-25,1500.00,1500.00,Contribution,"International Marketing Program",
2019-2020,P4,"775 Media Corp.",Calgary,Alberta,Canada,"I am Herod",English,Drama,2020-03-17,15000.00,15000.00,Advance,"Development Program",
2019-2020,P4,"Unstoppable Urges Productions Ltd.",Toronto,Ontario,Canada,"Choke Cherry Heights",,,2020-02-19,1500.00,1500.00,Contribution,"International Marketing Program",
2019-2020,P4,"Acephale Inc.",Montreal,Quebec,Canada,"The Two Sights",,,2020-03-09,19500.00,19500.00,Contribution,"International Marketing Program",
2019-2020,P4,"Les Productions MH Cousineau Inc.",Montreal,Quebec,Canada,"La rivi�re sans repos � Cr�teil",,,2020-03-05,1500.00,1500.00,Contribution,"International Marketing Program",
2019-2020,P4,"Microscope Inc.",Montreal,Quebec,Canada,POMP�I,French,Drama,2020-03-12,3000.00,3000.00,Contribution,"International Marketing Program",
2019-2020,P4,"9164-6828 Qu�bec Inc. (d/b/a Productions Loaded Pictures)",Montreal,Quebec,Canada,"La Mosqu�e: une communaut� menac�e",French,Documentary,2020-03-24,8000.00,8000.00,Advance,"Marketing Program",
2019-2020,P4,"Microscope Inc.",Montreal,Quebec,Canada,"My Salinger Year",,,2020-03-12,25000.00,25000.00,Contribution,"International Marketing Program",
2019-2020,P4,"Filmoption International Inc.",Westmount,Quebec,Canada,"Lea Tsemel, Avocate",French,Documentary,2020-03-11,6800.00,6800.00,Advance,"Marketing Program",
2019-2020,P4,"Raven Banner Releasing Inc.",Toronto,Ontario,Canada,"Nail in the Coffin: The Fall and Rise of Vampiro",English,Documentary,2020-03-13,15000.00,15000.00,Advance,"Marketing Program",
2019-2020,P4,"Productions 10e Ave inc.",Saint-Augustin-de-Desmaures,Quebec,Canada,"B�luga Blues",,,2020-03-25,1500.00,1500.00,Contribution,"International Marketing Program",
2019-2020,P4,"Elevation Pictures Corp.",Toronto,Ontario,Canada,"Disappearance at Clifton Hill",English,Drama,2020-03-09,219684.00,219684.00,Advance,"Marketing Program",
2019-2020,P4,"Elevation Pictures Corp.",Toronto,Ontario,Canada,"Run This Town",English,Drama,2020-03-09,238546.00,238546.00,Advance,"Marketing Program",
2019-2020,P4,"Elevation Pictures Corp.",Toronto,Ontario,Canada,"Blood Quantum",English,Horror,2020-03-09,348913.00,348913.00,Advance,"Marketing Program",
2019-2020,P4,"Elevation Pictures Corp.",Toronto,Ontario,Canada,"American Woman",English,Drama,2020-03-26,180091.00,180091.00,Advance,"Marketing Program",
2019-2020,P4,"MC2 Communication M�dia inc.",Montreal,Quebec,Canada,"They Call Me Dr.Miami",,,2020-03-10,5000.00,5000.00,Contribution,"International Marketing Program",
2019-2020,P4,"Aqute Media Inc.",Toronto,Ontario,Canada,"Tammy's Always Dying",English,,2020-03-30,41250.00,41250.00,Advance,"Marketing Program",
2019-2020,P4,"Films S�ville Inc. (Les)",Montreal,Quebec,Canada,"MAFIA INC",French,,2020-03-27,383113.00,383113.00,Advance,"Marketing Program",
2019-2020,P4,"Go Films L.P.R.S. inc.",Montreal,Quebec,Canada,KAO,French,Drama,2020-02-28,15000.00,15000.00,Advance,"Development Program",
2019-2020,P4,"Go Films L.P.R.S. inc.",Montreal,Quebec,Canada,"Les Abysses",French,Drama,2020-02-28,55000.00,55000.00,Advance,"Development Program",
2019-2020,P4,"Go Films L.P.R.S. inc.",Montreal,Quebec,Canada,"Ouvrir son coeur",French,Drama,2020-02-28,30000.00,30000.00,Advance,"Development Program",
2019-2020,P4,"Carpediem Film & TV Inc.",Montreal,Quebec,Canada,"L'�curie en folie",French,Comedy,2020-02-24,60000.00,60000.00,Advance,"Development Program",
2019-2020,P4,"Medium Density Fibreboard Films Inc.",Toronto,Ontario,Canada,"Anne at 13,000 ft",,,2020-03-19,22700.00,22700.00,Contribution,"International Marketing Program",
2019-2020,P4,"Melenny Productions Inc.",Montreal,Quebec,Canada,"Les minis Boys",French,Comedy,2020-02-24,20000.00,20000.00,Advance,"Development Program",
2019-2020,P4,"Films Outsiders Inc. (Les)",Verdun,Quebec,Canada,"Il pleuvait des oiseaux",,,2020-03-24,1500.00,1500.00,Contribution,"International Marketing Program",
2019-2020,P4,"WEP Productions",Niddatal,,Germany,Astronaut,English,,2020-03-25,45000.00,45000.00,Contribution,"Export Assistance Program",
2019-2020,P4,"Eye Steel Film Distribution inc.",Montreal,Quebec,Canada,"Dope is Death",,,2020-03-27,4200.00,4200.00,Contribution,"International Marketing Program",
2019-2020,P4,"Firecrackers Film Incorporated",Bolton,Ontario,Canada,Firecrackers,English,Drama,2020-03-30,7500.00,7500.00,Contribution,"Production Program",
